[Event "*** Titled Tuesday Blitz"]
[Site "Chess.com"]
[Date "2021.02.09"]
[Round "5"]
[White "FontVella8"]
[Black "Adham_Fawzy"]
[Result "0-1"]
[WhiteElo "2572"]
[BlackElo "2774"]
[TimeControl "180+1"]
[EndTime "10:58:14 PST"]
[Termination "Adham_Fawzy won by resignation"]

1. e4 {[%clk 0:02:55.8]} 1... c5 {[%clk 0:02:59.8]} 2. Nf3 {[%clk 0:02:51.9]}
2... Nc6 {[%clk 0:02:59.7]} 3. d4 {[%clk 0:02:52.1]} 3... cxd4 {[%clk
0:03:00.6]} 4. Nxd4 {[%clk 0:02:52.8]} 4... e5 {[%clk 0:03:01.4]} 5. Nb5 {[%clk
0:02:52.3]} 5... d6 {[%clk 0:03:01.6]} 6. N1c3 {[%clk 0:02:52.4]} 6... a6 {[%clk
0:03:01.5]} 7. Na3 {[%clk 0:02:52.8]} 7... b5 {[%clk 0:03:02.4]} 8. Nd5 {[%clk
0:02:52.8]} 8... Nge7 {[%clk 0:03:03]} 9. c4 {[%clk 0:02:51.1]} 9... Nd4 {[%clk
0:03:03.3]} 10. Be3 {[%clk 0:02:45.7]} 10... Nxd5 {[%clk 0:03:02.9]} 11. cxd5
{[%clk 0:02:46.6]} 11... g6 {[%clk 0:03:02.9]} 12. Bd3 {[%clk 0:02:44.2]} 12...
Bg7 {[%clk 0:03:01.8]} 13. O-O {[%clk 0:02:41.5]} 13... O-O {[%clk 0:02:58.1]}
14. Nc2 {[%clk 0:02:41.6]} 14... Nxc2 {[%clk 0:02:57.3]} 15. Qxc2 {[%clk
0:02:39.8]} 15... Bd7 {[%clk 0:02:58.1]} 16. Qd2 {[%clk 0:02:32.7]} 16... Qb8
{[%clk 0:02:54.5]} 17. Bh6 {[%clk 0:02:27.9]} 17... Rc8 {[%clk 0:02:51.9]} 18.
Bxg7 {[%clk 0:02:27.8]} 18... Kxg7 {[%clk 0:02:52.8]} 19. f4 {[%clk 0:02:25]}
19... Qb6+ {[%clk 0:02:52.4]} 20. Kh1 {[%clk 0:02:23.8]} 20... Qd4 {[%clk
0:02:48.5]} 21. fxe5 {[%clk 0:02:24]} 21... Qxe5 {[%clk 0:02:48.8]} 22. Qf2
{[%clk 0:02:20.7]} 22... f6 {[%clk 0:02:48]} 23. Rac1 {[%clk 0:02:18.4]} 23...
Be8 {[%clk 0:02:30.4]} 24. h3 {[%clk 0:02:05.5]} 24... Bf7 {[%clk 0:02:30.1]}
25. Qb6 {[%clk 0:01:58.9]} 25... Rxc1 {[%clk 0:02:01.3]} 26. Rxc1 {[%clk
0:01:58.3]} 26... Qxb2 {[%clk 0:02:02.2]} 27. Rc7 {[%clk 0:01:56.6]} 27... Qa1+
{[%clk 0:02:02.2]} 28. Kh2 {[%clk 0:01:54.8]} 28... Qe5+ {[%clk 0:02:03.1]} 29.
Kg1 {[%clk 0:01:51.9]} 29... Rf8 {[%clk 0:01:54.4]} 30. Rd7 {[%clk 0:01:51.1]}
30... Qc3 {[%clk 0:01:52.1]} 31. Bf1 {[%clk 0:01:48.4]} 31... Qc2 {[%clk
0:01:48.6]} 32. Rxd6 {[%clk 0:01:36.3]} 32... Qxe4 {[%clk 0:01:43.1]} 33. Rxf6
{[%clk 0:01:36.5]} 33... Qxd5 {[%clk 0:01:25.5]} 34. Rf2 {[%clk 0:01:23.3]}
34... Qe6 {[%clk 0:01:21.3]} 35. Qd4+ {[%clk 0:01:22.3]} 35... Kg8 {[%clk
0:01:20.8]} 36. Rf6 {[%clk 0:01:21.1]} 36... Qxa2 {[%clk 0:01:19]} 37. h4 {[%clk
0:01:19.4]} 37... Qd5 {[%clk 0:01:13]} 38. Qf4 {[%clk 0:01:16.1]} 38... a5
{[%clk 0:01:10.9]} 39. Be2 {[%clk 0:01:06.9]} 39... b4 {[%clk 0:01:07.9]} 40. h5
{[%clk 0:01:01.6]} 40... b3 {[%clk 0:01:05.1]} 41. hxg6 {[%clk 0:00:59.1]} 41...
hxg6 {[%clk 0:01:02.6]} 42. Bf3 {[%clk 0:00:11.4]} 42... Qc5+ {[%clk 0:01:00.5]}
43. Kh2 {[%clk 0:00:12]} 43... Kg7 {[%clk 0:00:58]} 44. Be4 {[%clk 0:00:09.9]}
44... Qe7 {[%clk 0:00:41.7]} 45. Rb6 {[%clk 0:00:08.5]} 45... Rh8+ {[%clk
0:00:32.8]} 46. Kg3 {[%clk 0:00:07.6]} 46... g5 {[%clk 0:00:28.3]} 47. Qc1
{[%clk 0:00:03.1]} 47... Qe5+ {[%clk 0:00:26]} 48. Kf3 {[%clk 0:00:01.6]} 48...
Bh5+ {[%clk 0:00:22.1]} 49. g4 {[%clk 0:00:02]} 49... Bxg4+ {[%clk 0:00:22.3]}
50. Kxg4 {[%clk 0:00:02.6]} 50... Rh4+ {[%clk 0:00:22.4]} 51. Kf3 {[%clk
0:00:02]} 51... Qxe4+ {[%clk 0:00:22.8]} 52. Kg3 {[%clk 0:00:02.5]} 52... Qg4+
{[%clk 0:00:21.7]} 53. Kf2 {[%clk 0:00:02.7]} 53... Rh2+ {[%clk 0:00:21.2]} 54.
Ke3 {[%clk 0:00:03.6]} 54... Qf4+ {[%clk 0:00:21.6]} 55. Kd3 {[%clk 0:00:03.5]}
55... Qxc1 {[%clk 0:00:22.5]} 0-1

[Event "*** Titled Tuesday Blitz"]
[Site "Chess.com"]
[Date "2021.02.09"]
[Round "5"]
[White "manmanlai1"]
[Black "Nachsueb"]
[Result "1-0"]
[WhiteElo "2471"]
[BlackElo "2187"]
[TimeControl "180+1"]
[EndTime "10:58:20 PST"]
[Termination "manmanlai1 won by resignation"]

1. Nf3 {[%clk 0:03:00.9]} 1... g6 {[%clk 0:02:59.7]} 2. c4 {[%clk 0:02:58.7]}
2... Bg7 {[%clk 0:03:00]} 3. Nc3 {[%clk 0:02:56.8]} 3... c5 {[%clk 0:03:00.5]}
4. b3 {[%clk 0:02:56.2]} 4... Nc6 {[%clk 0:03:01.1]} 5. Bb2 {[%clk 0:02:56.3]}
5... e5 {[%clk 0:03:00.5]} 6. d3 {[%clk 0:02:49.8]} 6... Nge7 {[%clk 0:03:00.9]}
7. g3 {[%clk 0:02:49.4]} 7... O-O {[%clk 0:03:01]} 8. Bg2 {[%clk 0:02:49.9]}
8... d6 {[%clk 0:03:00.1]} 9. h4 {[%clk 0:02:47.7]} 9... h5 {[%clk 0:02:59.4]}
10. Ng5 {[%clk 0:02:46.2]} 10... Rb8 {[%clk 0:02:55.1]} 11. Nd5 {[%clk
0:02:44.2]} 11... f6 {[%clk 0:02:45]} 12. Nxe7+ {[%clk 0:02:40.2]} 12... Nxe7
{[%clk 0:02:45.9]} 13. Ne4 {[%clk 0:02:37.4]} 13... b6 {[%clk 0:02:40.3]} 14.
Nc3 {[%clk 0:02:31.6]} 14... Be6 {[%clk 0:02:35.9]} 15. Qd2 {[%clk 0:02:30.3]}
15... Kh7 {[%clk 0:02:32.4]} 16. e3 {[%clk 0:02:29]} 16... d5 {[%clk 0:02:29]}
17. O-O {[%clk 0:02:27]} 17... dxc4 {[%clk 0:02:23.1]} 18. bxc4 {[%clk
0:02:24.9]} 18... Bxc4 {[%clk 0:02:23]} 19. Rfd1 {[%clk 0:02:25.3]} 19... Be6
{[%clk 0:02:20.1]} 20. d4 {[%clk 0:02:24.7]} 20... exd4 {[%clk 0:02:14.5]} 21.
exd4 {[%clk 0:02:24.9]} 21... Bh6 {[%clk 0:02:05.6]} 22. Qe2 {[%clk 0:02:20.1]}
22... Qc8 {[%clk 0:01:54.6]} 23. Re1 {[%clk 0:02:11.2]} 23... cxd4 {[%clk
0:01:48.5]} 24. Nb5 {[%clk 0:02:05.6]} 24... d3 {[%clk 0:01:29]} 25. Qxe6 {[%clk
0:02:00.6]} 25... Nf5 {[%clk 0:01:20.4]} 26. Nd6 {[%clk 0:01:38.9]} 26... Qxe6
{[%clk 0:01:11.6]} 27. Rxe6 {[%clk 0:01:39.8]} 27... Rbd8 {[%clk 0:00:53.7]} 28.
Nxf5 {[%clk 0:01:33.9]} 28... gxf5 {[%clk 0:00:49.5]} 29. Rd1 {[%clk 0:01:30.2]}
29... Kg6 {[%clk 0:00:47.3]} 30. f4 {[%clk 0:01:27.8]} 30... Rf7 {[%clk
0:00:43.1]} 31. Kf2 {[%clk 0:01:19.6]} 31... Bf8 {[%clk 0:00:42.4]} 32. Bf3
{[%clk 0:01:10.1]} 32... Bc5+ {[%clk 0:00:40.2]} 33. Kf1 {[%clk 0:01:09.4]}
33... Bb4 {[%clk 0:00:34.9]} 34. a3 {[%clk 0:01:06.7]} 34... Bc5 {[%clk
0:00:27.6]} 35. Rd2 {[%clk 0:01:01.8]} 35... b5 {[%clk 0:00:13.6]} 36. Bd1
{[%clk 0:00:58.7]} 36... b4 {[%clk 0:00:12.7]} 37. a4 {[%clk 0:00:53.8]} 37...
a5 {[%clk 0:00:12]} 38. Bb3 {[%clk 0:00:54]} 38... Rdd7 {[%clk 0:00:08.8]} 39.
Bc4 {[%clk 0:00:52.5]} 39... Rd8 {[%clk 0:00:08.2]} 40. Rxd3 {[%clk 0:00:52]}
40... Rg8 {[%clk 0:00:05.4]} 41. Rd5 {[%clk 0:00:43.2]} 41... Kh7 {[%clk
0:00:05.3]} 42. Rxc5 {[%clk 0:00:38.7]} 42... Rxg3 {[%clk 0:00:05.3]} 43. Bxf6
{[%clk 0:00:33.6]} 43... Rf3+ {[%clk 0:00:04.6]} 44. Ke2 {[%clk 0:00:31.5]}
44... Rxf4 {[%clk 0:00:05.5]} 45. Bg5 {[%clk 0:00:28.8]} 45... Rg4 {[%clk
0:00:04.4]} 46. Rh6+ {[%clk 0:00:24.1]} 46... Kg7 {[%clk 0:00:04]} 47. Bxf7
{[%clk 0:00:24.4]} 47... Kxf7 {[%clk 0:00:04.9]} 48. Rc7+ {[%clk 0:00:24.9]}
48... Kg8 {[%clk 0:00:05.4]} 49. Rg6+ {[%clk 0:00:24.9]} 49... Kf8 {[%clk
0:00:04.4]} 50. Bh6+ {[%clk 0:00:15.5]} 50... Ke8 {[%clk 0:00:04.9]} 51. Rxg4
{[%clk 0:00:15.8]} 51... fxg4 {[%clk 0:00:04.6]} 52. Rb7 {[%clk 0:00:14.6]} 1-0

[Event "*** Titled Tuesday Blitz"]
[Site "Chess.com"]
[Date "2021.02.09"]
[Round "5"]
[White "AwareIdea"]
[Black "manitodeplomo"]
[Result "1/2-1/2"]
[WhiteElo "2475"]
[BlackElo "2622"]
[TimeControl "180+1"]
[EndTime "10:58:22 PST"]
[Termination "Game drawn by repetition"]

1. d4 {[%clk 0:03:00.9]} 1... g6 {[%clk 0:02:53]} 2. Bf4 {[%clk 0:03:00.8]} 2...
Bg7 {[%clk 0:02:53]} 3. e3 {[%clk 0:03:01.7]} 3... Nf6 {[%clk 0:02:52.3]} 4. Nc3
{[%clk 0:03:01.2]} 4... O-O {[%clk 0:02:52.7]} 5. h4 {[%clk 0:03:01.5]} 5... h5
{[%clk 0:02:44.9]} 6. e4 {[%clk 0:03:00.3]} 6... d6 {[%clk 0:02:40.7]} 7. f3
{[%clk 0:03:00.2]} 7... c5 {[%clk 0:02:40.4]} 8. dxc5 {[%clk 0:02:59.5]} 8...
dxc5 {[%clk 0:02:32.1]} 9. Qxd8 {[%clk 0:02:55.8]} 9... Rxd8 {[%clk 0:02:33]}
10. Rd1 {[%clk 0:02:56.1]} 10... Rxd1+ {[%clk 0:02:31.3]} 11. Kxd1 {[%clk
0:02:57]} 11... Nc6 {[%clk 0:02:31.7]} 12. Bb5 {[%clk 0:02:52.1]} 12... Nd4
{[%clk 0:02:26.3]} 13. Nge2 {[%clk 0:02:47.8]} 13... a6 {[%clk 0:02:15.8]} 14.
Bd3 {[%clk 0:02:41]} 14... b5 {[%clk 0:02:02.9]} 15. Nxd4 {[%clk 0:02:40.4]}
15... cxd4 {[%clk 0:02:03.1]} 16. Ne2 {[%clk 0:02:34.6]} 16... Nd7 {[%clk
0:02:02.5]} 17. Kd2 {[%clk 0:02:26]} 17... e5 {[%clk 0:01:59.4]} 18. Bg3 {[%clk
0:02:23.8]} 18... Nc5 {[%clk 0:01:57.9]} 19. c3 {[%clk 0:02:16.8]} 19... Be6
{[%clk 0:01:49.1]} 20. cxd4 {[%clk 0:01:49]} 20... exd4 {[%clk 0:01:44.7]} 21.
b3 {[%clk 0:01:45.9]} 21... b4 {[%clk 0:00:15.7]} 22. Rc1 {[%clk 0:01:42.4]}
22... Nxd3 {[%clk 0:00:12.8]} 23. Kxd3 {[%clk 0:01:43.3]} 23... a5 {[%clk
0:00:13.5]} 24. Nf4 {[%clk 0:01:26.8]} 24... Bd7 {[%clk 0:00:05.9]} 25. Nd5
{[%clk 0:01:19]} 25... a4 {[%clk 0:00:04.6]} 26. Nxb4 {[%clk 0:01:09.2]} 26...
Bb5+ {[%clk 0:00:04.5]} 27. Kd2 {[%clk 0:01:06]} 27... axb3 {[%clk 0:00:04.8]}
28. axb3 {[%clk 0:01:06.9]} 28... Bf8 {[%clk 0:00:04.2]} 29. Nd3 {[%clk
0:01:00.7]} 29... Ra2+ {[%clk 0:00:03.1]} 30. Rc2 {[%clk 0:01:00.8]} 30... Bh6+
{[%clk 0:00:03]} 31. Bf4 {[%clk 0:00:54.1]} 31... Rxc2+ {[%clk 0:00:03.1]} 32.
Kxc2 {[%clk 0:00:52.3]} 32... Bxd3+ {[%clk 0:00:04]} 33. Kxd3 {[%clk 0:00:53.2]}
33... Bxf4 {[%clk 0:00:04.4]} 34. Kxd4 {[%clk 0:00:53.5]} 34... Bg3 {[%clk
0:00:04.4]} 35. Kd5 {[%clk 0:00:50.2]} 35... Bxh4 {[%clk 0:00:05]} 36. b4 {[%clk
0:00:50.3]} 36... Bf2 {[%clk 0:00:05.5]} 37. b5 {[%clk 0:00:49.4]} 37... Kg7
{[%clk 0:00:06.1]} 38. e5 {[%clk 0:00:48.3]} 38... Kh6 {[%clk 0:00:05.7]} 39. f4
{[%clk 0:00:45.6]} 39... h4 {[%clk 0:00:05.1]} 40. Kd6 {[%clk 0:00:36]} 40...
Kg7 {[%clk 0:00:04.4]} 41. Kc6 {[%clk 0:00:32.8]} 41... g5 {[%clk 0:00:04.5]}
42. f5 {[%clk 0:00:31.7]} 42... g4 {[%clk 0:00:04.2]} 43. e6 {[%clk 0:00:28.5]}
43... fxe6 {[%clk 0:00:04.1]} 44. fxe6 {[%clk 0:00:29.4]} 44... Kf6 {[%clk
0:00:02.9]} 45. Kd7 {[%clk 0:00:29.3]} 45... Bc5 {[%clk 0:00:02.5]} 46. b6
{[%clk 0:00:29.6]} 46... h3 {[%clk 0:00:02.2]} 47. gxh3 {[%clk 0:00:27.8]} 47...
gxh3 {[%clk 0:00:01.8]} 48. b7 {[%clk 0:00:28.2]} 48... Ba7 {[%clk 0:00:01.2]}
49. e7 {[%clk 0:00:26.5]} 49... h2 {[%clk 0:00:01.8]} 50. e8=Q {[%clk
0:00:26.9]} 50... h1=Q {[%clk 0:00:02.7]} 51. Qe6+ {[%clk 0:00:26.4]} 51... Kg7
{[%clk 0:00:02.3]} 52. Qe7+ {[%clk 0:00:19.2]} 52... Kg8 {[%clk 0:00:02.7]} 53.
Qe8+ {[%clk 0:00:15.6]} 53... Kg7 {[%clk 0:00:03.2]} 54. Qe7+ {[%clk 0:00:15.5]}
54... Kg8 {[%clk 0:00:03.3]} 55. Qg5+ {[%clk 0:00:14.3]} 55... Kf7 {[%clk
0:00:03.5]} 56. Qf5+ {[%clk 0:00:14.3]} 56... Kg7 {[%clk 0:00:03.8]} 57. Qe5+
{[%clk 0:00:11.6]} 57... Kf7 {[%clk 0:00:03.4]} 58. Qe6+ {[%clk 0:00:11.7]}
58... Kg7 {[%clk 0:00:03.6]} 59. Qe7+ {[%clk 0:00:12]} 1/2-1/2

[Event "*** Titled Tuesday Blitz"]
[Site "Chess.com"]
[Date "2021.02.09"]
[Round "5"]
[White "Problematique_99"]
[Black "LimeInTheCoconut"]
[Result "1-0"]
[WhiteElo "2457"]
[BlackElo "2297"]
[TimeControl "180+1"]
[EndTime "10:58:22 PST"]
[Termination "Problematique_99 won on time"]

1. e4 {[%clk 0:02:57.4]} 1... c6 {[%clk 0:02:59]} 2. d3 {[%clk 0:02:55.4]} 2...
d5 {[%clk 0:02:59.9]} 3. Nf3 {[%clk 0:02:55.6]} 3... dxe4 {[%clk 0:02:59.7]} 4.
dxe4 {[%clk 0:02:55.5]} 4... Qxd1+ {[%clk 0:03:00.6]} 5. Kxd1 {[%clk 0:02:56.1]}
5... Nf6 {[%clk 0:02:54.8]} 6. Nfd2 {[%clk 0:02:55.6]} 6... g5 {[%clk
0:02:49.5]} 7. Nc3 {[%clk 0:02:49.2]} 7... h5 {[%clk 0:02:43.9]} 8. f3 {[%clk
0:02:41.5]} 8... h4 {[%clk 0:02:41.7]} 9. Bc4 {[%clk 0:02:34.9]} 9... e6 {[%clk
0:02:37.7]} 10. e5 {[%clk 0:02:22.8]} 10... Nd5 {[%clk 0:02:29.5]} 11. Nde4
{[%clk 0:02:21.9]} 11... Nxc3+ {[%clk 0:02:18]} 12. bxc3 {[%clk 0:02:20.3]}
12... Nd7 {[%clk 0:01:48.4]} 13. Bxg5 {[%clk 0:02:12.8]} 13... Be7 {[%clk
0:01:34.2]} 14. Bxe7 {[%clk 0:02:10.7]} 14... Kxe7 {[%clk 0:01:35.1]} 15. f4
{[%clk 0:02:11.3]} 15... b5 {[%clk 0:01:21]} 16. Bd3 {[%clk 0:02:09]} 16... c5
{[%clk 0:01:02.2]} 17. Bxb5 {[%clk 0:02:00.6]} 17... Bb7 {[%clk 0:01:01.9]} 18.
Re1 {[%clk 0:01:56.4]} 18... Rhg8 {[%clk 0:00:55.9]} 19. Bxd7 {[%clk 0:01:51.1]}
19... Bxe4 {[%clk 0:00:52]} 20. Rxe4 {[%clk 0:01:49.3]} 20... Kxd7 {[%clk
0:00:49.5]} 21. Re2 {[%clk 0:01:46.5]} 21... Rab8 {[%clk 0:00:48.9]} 22. Kc1
{[%clk 0:01:43.8]} 22... Rg4 {[%clk 0:00:48.1]} 23. Rf2 {[%clk 0:01:32.8]} 23...
Rbg8 {[%clk 0:00:45]} 24. Rb1 {[%clk 0:01:32.2]} 24... Rxg2 {[%clk 0:00:43.4]}
25. Rb7+ {[%clk 0:01:31]} 25... Kc6 {[%clk 0:00:41.4]} 26. Rxg2 {[%clk
0:01:29.2]} 26... Rxg2 {[%clk 0:00:42.3]} 27. Rxf7 {[%clk 0:01:28.4]} 27... Rxh2
{[%clk 0:00:33.6]} 28. c4 {[%clk 0:01:24.6]} 28... Rf2 {[%clk 0:00:30.2]} 29.
Rxa7 {[%clk 0:01:03.5]} 29... Rxf4 {[%clk 0:00:29]} 30. Re7 {[%clk 0:01:04.1]}
30... Rxc4 {[%clk 0:00:26.8]} 31. Rxe6+ {[%clk 0:01:04.5]} 31... Kd5 {[%clk
0:00:27.5]} 32. Re8 {[%clk 0:01:01.7]} 32... Re4 {[%clk 0:00:23.1]} 33. Kd2
{[%clk 0:00:44.8]} 33... Rxe5 {[%clk 0:00:22.1]} 34. Rh8 {[%clk 0:00:30.7]}
34... Re4 {[%clk 0:00:21]} 35. Kc3 {[%clk 0:00:30]} 35... Rc4+ {[%clk
0:00:20.1]} 36. Kb3 {[%clk 0:00:29.6]} 36... Rb4+ {[%clk 0:00:20.7]} 37. Ka3
{[%clk 0:00:29.8]} 37... Rc4 {[%clk 0:00:17]} 38. Rh5+ {[%clk 0:00:29.8]} 38...
Kc6 {[%clk 0:00:17]} 39. Kb3 {[%clk 0:00:30.2]} 39... Kb5 {[%clk 0:00:16]} 40.
c3 {[%clk 0:00:26.9]} 40... Rg4 {[%clk 0:00:12.7]} 41. Rh8 {[%clk 0:00:25.9]}
41... c4+ {[%clk 0:00:11.3]} 42. Ka3 {[%clk 0:00:25.6]} 42... Rf4 {[%clk
0:00:08.4]} 43. Rh5+ {[%clk 0:00:25.7]} 43... Kb6 {[%clk 0:00:07.9]} 44. Kb4
{[%clk 0:00:26.3]} 44... Rg4 {[%clk 0:00:07.8]} 45. a4 {[%clk 0:00:26.3]} 45...
Rf4 {[%clk 0:00:06.7]} 46. a5+ {[%clk 0:00:26.6]} 46... Ka6 {[%clk 0:00:07.1]}
47. Rh6+ {[%clk 0:00:26.3]} 47... Ka7 {[%clk 0:00:07.3]} 48. Rh5 {[%clk
0:00:24.9]} 48... Rg4 {[%clk 0:00:06.8]} 49. Kb5 {[%clk 0:00:23.9]} 49... Rg7
{[%clk 0:00:01.5]} 50. Rxh4 {[%clk 0:00:23.6]} 50... Rg5+ {[%clk 0:00:02.1]} 51.
Kb4 {[%clk 0:00:22.6]} 51... Ka6 {[%clk 0:00:01.8]} 52. Rh6+ {[%clk 0:00:21.3]}
52... Kb7 {[%clk 0:00:02.4]} 53. Rb6+ {[%clk 0:00:21.2]} 53... Ka7 {[%clk
0:00:01.8]} 54. Rb5 {[%clk 0:00:20.9]} 54... Rg4 {[%clk 0:00:01.6]} 55. Rc5
{[%clk 0:00:21]} 55... Rg1 {[%clk 0:00:01.5]} 56. Kxc4 {[%clk 0:00:19.7]} 56...
Rb1 {[%clk 0:00:01.7]} 57. Rb5 {[%clk 0:00:17.9]} 57... Rh1 {[%clk 0:00:01.1]}
58. Rg5 {[%clk 0:00:17.8]} 1-0

[Event "*** Titled Tuesday Blitz"]
[Site "Chess.com"]
[Date "2021.02.09"]
[Round "5"]
[White "HouseOfDurin"]
[Black "Mbneu"]
[Result "1-0"]
[WhiteElo "2100"]
[BlackElo "2279"]
[TimeControl "180+1"]
[EndTime "10:58:24 PST"]
[Termination "HouseOfDurin won on time"]

1. d4 {[%clk 0:03:00.9]} 1... Nf6 {[%clk 0:02:59.2]} 2. Bg5 {[%clk 0:03:01.4]}
2... c5 {[%clk 0:02:58.6]} 3. Bxf6 {[%clk 0:03:01]} 3... gxf6 {[%clk 0:02:55.5]}
4. c3 {[%clk 0:03:01.4]} 4... e6 {[%clk 0:02:50.3]} 5. e3 {[%clk 0:02:54.5]}
5... b6 {[%clk 0:02:50.2]} 6. Qf3 {[%clk 0:02:39.3]} 6... Nc6 {[%clk 0:02:45.5]}
7. g3 {[%clk 0:02:39.1]} 7... Bb7 {[%clk 0:02:43.5]} 8. Bg2 {[%clk 0:02:22.4]}
8... Na5 {[%clk 0:02:41.5]} 9. e4 {[%clk 0:02:22.1]} 9... cxd4 {[%clk
0:02:31.4]} 10. Ne2 {[%clk 0:02:05]} 10... Nc4 {[%clk 0:01:59.8]} 11. O-O {[%clk
0:01:50.9]} 11... f5 {[%clk 0:01:57.1]} 12. Nxd4 {[%clk 0:01:34.5]} 12... Bxe4
{[%clk 0:01:47.7]} 13. Qe2 {[%clk 0:01:34.4]} 13... Bxg2 {[%clk 0:01:39.5]} 14.
Kxg2 {[%clk 0:01:35.3]} 14... Nd6 {[%clk 0:01:38.5]} 15. Na3 {[%clk 0:01:20.2]}
15... Bg7 {[%clk 0:01:26.9]} 16. Nab5 {[%clk 0:01:17.1]} 16... Nxb5 {[%clk
0:01:22.8]} 17. Nxf5 {[%clk 0:01:12.3]} 17... Bf6 {[%clk 0:01:02.8]} 18. Qxb5
{[%clk 0:00:54.1]} 18... exf5 {[%clk 0:01:02.4]} 19. Rfe1+ {[%clk 0:00:44.1]}
19... Kf8 {[%clk 0:01:01.6]} 20. Rad1 {[%clk 0:00:43.3]} 20... d6 {[%clk
0:00:42.1]} 21. Qxf5 {[%clk 0:00:36.7]} 21... Bg7 {[%clk 0:00:29.3]} 22. Rd5
{[%clk 0:00:31.5]} 22... Qc8 {[%clk 0:00:13.1]} 23. Qd3 {[%clk 0:00:18.2]} 23...
Qc6 {[%clk 0:00:12.2]} 24. f3 {[%clk 0:00:16.2]} 24... Rd8 {[%clk 0:00:11]} 25.
Rd1 {[%clk 0:00:15.6]} 25... h5 {[%clk 0:00:09.4]} 26. Rxd6 {[%clk 0:00:15]}
26... Rxd6 {[%clk 0:00:09.1]} 27. Qxd6+ {[%clk 0:00:15.9]} 27... Qxd6 {[%clk
0:00:09.4]} 28. Rxd6 {[%clk 0:00:16.5]} 28... Rh6 {[%clk 0:00:10]} 29. Rd7
{[%clk 0:00:15.7]} 29... a5 {[%clk 0:00:09.8]} 30. Rd5 {[%clk 0:00:11.8]} 30...
h4 {[%clk 0:00:09.4]} 31. gxh4 {[%clk 0:00:09.1]} 31... Rxh4 {[%clk 0:00:09.6]}
32. Rd6 {[%clk 0:00:08.5]} 32... Rh6 {[%clk 0:00:10.2]} 33. Rd5 {[%clk
0:00:08.2]} 33... Rc6 {[%clk 0:00:09.5]} 34. Rd8+ {[%clk 0:00:06.8]} 34... Ke7
{[%clk 0:00:09.6]} 35. Rd3 {[%clk 0:00:07.3]} 35... Bh6 {[%clk 0:00:09.3]} 36.
Kf2 {[%clk 0:00:07.1]} 36... Bc1 {[%clk 0:00:08.7]} 37. b3 {[%clk 0:00:06.5]}
37... Bb2 {[%clk 0:00:08.9]} 38. c4 {[%clk 0:00:06.8]} 38... Bf6 {[%clk
0:00:08.1]} 39. Rd5 {[%clk 0:00:07.1]} 39... Ke6 {[%clk 0:00:07.7]} 40. Kg3
{[%clk 0:00:07.1]} 40... Be7 {[%clk 0:00:08.2]} 41. h4 {[%clk 0:00:06.8]} 41...
Bc5 {[%clk 0:00:08.5]} 42. h5 {[%clk 0:00:06.7]} 42... Kf6 {[%clk 0:00:09.1]}
43. Kf4 {[%clk 0:00:05.9]} 43... Kg7 {[%clk 0:00:08.8]} 44. Kg5 {[%clk
0:00:05.8]} 44... Rf6 {[%clk 0:00:07.2]} 45. Kg4 {[%clk 0:00:04]} 45... Be3
{[%clk 0:00:05.8]} 46. Rg5+ {[%clk 0:00:04.5]} 46... Kh7 {[%clk 0:00:05.2]} 47.
Rd5 {[%clk 0:00:03.7]} 47... Rf4+ {[%clk 0:00:03.6]} 48. Kg3 {[%clk 0:00:03.9]}
48... Kh6 {[%clk 0:00:03.2]} 49. Rd6+ {[%clk 0:00:04.1]} 49... Kxh5 {[%clk
0:00:02.6]} 50. Rd7 {[%clk 0:00:03.3]} 50... f5 {[%clk 0:00:02.4]} 51. Re7
{[%clk 0:00:03.5]} 51... Bc1 {[%clk 0:00:01.9]} 52. Re1 {[%clk 0:00:03.9]} 52...
Bd2 {[%clk 0:00:01.5]} 53. Re2 {[%clk 0:00:04.3]} 53... Bc1 {[%clk 0:00:01.4]}
54. Re1 {[%clk 0:00:03.6]} 54... Rh4 {[%clk 0:00:01.4]} 55. Rxc1 {[%clk
0:00:03.2]} 55... f4+ {[%clk 0:00:02]} 56. Kg2 {[%clk 0:00:02.8]} 56... Kg6
{[%clk 0:00:01.1]} 57. Rd1 {[%clk 0:00:03.2]} 1-0